fUSD/lending_fUSD_20241105
["ID","MTS","AMOUNT","RATE_DAILY","PERIOD"]
[341328769,1730808976364,500.0,0.00043687,30]
[341328770,1730808976419,500.0,0.00043687,30]
[341328771,1730808976458,713.06,0.00043687,30]
[341328772,1730808976565,500.0,0.00043687,30]
[341328773,1730808976596,1225.15,0.00043687,30]
[341328774,1730808976625,500.0,0.00043687,30]
[341328775,1730808976668,713.06,0.00043687,30]
[341328776,1730808976703,500.0,0.00043687,30]
[341328777,1730808976990,1225.15,0.00043687,30]
[341328778,1730808977020,500.0,0.00043687,30]
[341328779,1730808977050,500.0,0.00043687,30]
[341328780,1730808977084,713.06,0.00043687,30]
[341328781,1730808977114,500.0,0.00043687,30]
[341328782,1730808977147,500.0,0.00043687,30]
[341328783,1730808977180,1225.15,0.00043687,30]
[341328784,1730808977210,204.84,0.00043687,30]
[341328785,1730808977240,500.0,0.00043687,30]
[341328786,1730808977268,588.99,0.00043687,30]
[341328787,1730808977298,713.06,0.00043687,30]
[341328788,1730808977329,500.0,0.00043687,30]
[341328789,1730808977390,609.10285982,0.00043687,30]
[341328790,1730808977421,1225.34,0.00043687,30]
[341328791,1730808977469,588.99,0.00043687,30]
[341328792,1730808977509,500.0,0.00043687,30]
[341328793,1730808977558,713.06,0.00043687,30]
[341328794,1730808977590,500.0,0.00043687,30]
[341328795,1730808977666,500.0,0.00043687,30]
[341328796,1730808977700,588.99,0.00043687,30]
[341328797,1730808977801,311.83262184,0.00043687,30]
[341328798,1730808977831,713.06,0.00043687,30]
[341328799,1730808977964,500.0,0.00043687,30]
[341328800,1730808978030,588.99,0.00043687,30]
[341328801,1730808978087,2725.18,0.00043687,30]
[341328802,1730808978117,713.06,0.00043687,30]
[341328803,1730808978229,588.99,0.00043687,30]
[341328804,1730808978347,713.06,0.00043687,30]
[341328805,1730808978383,2725.18,0.00043687,30]
[341328806,1730808978417,500.0,0.00043687,30]
[341328807,1730808978524,2031.01,0.00043687,30]
[341328808,1730808978569,500.0,0.00043687,30]
[341328809,1730808978599,588.99,0.00043687,30]
[341328810,1730808978634,2725.18,0.00043687,30]
[341328811,1730808978664,713.06,0.00043687,30]
[341328812,1730808978699,500.0,0.00043687,30]
[341328813,1730808978789,2031.01,0.00043687,30]
[341328814,1730808978865,500.0,0.00043687,30]
[341328815,1730808978898,2725.18,0.00043687,30]
[341328816,1730808978931,713.06,0.00043687,30]
[341328817,1730808979002,588.99,0.00043687,30]
[341328818,1730808979033,553.20443718,0.00043687,30]
[341328819,1730808979085,2031.01,0.00043687,30]
[341328820,1730808979158,713.06,0.00043687,30]
[341328821,1730808979196,2725.18,0.00043687,30]
[341328822,1730808979237,500.0,0.00043687,30]
[341328823,1730808979278,588.99,0.00043687,30]
[341328824,1730808979329,500.0,0.00043687,30]
[341328825,1730808979364,2031.01,0.00043687,30]
[341328826,1730808979422,713.06,0.00043687,30]
[341328827,1730808979474,2725.18,0.00043687,30]
[341328828,1730808979506,500.0,0.00043687,30]
[341328829,1730808979537,500.0,0.00043687,30]
[341328830,1730808979570,588.99,0.00043687,30]
[341328831,1730808979604,500.0,0.00043687,30]
[341328832,1730808979677,713.06,0.00043687,30]
[341328833,1730808979740,2725.18,0.00043687,30]
[341328834,1730808979795,500.0,0.00043687,30]
[341328835,1730808979865,500.0,0.00043687,30]
[341328836,1730808979896,500.0,0.00043687,30]
[341328837,1730808979927,713.16658433,0.00043687,30]
[341328838,1730808979959,588.99,0.00043687,30]
[341328839,1730808979992,2725.18,0.00043687,30]
[341328840,1730808980064,500.0,0.00043687,30]
[341328841,1730808980143,575.82291836,0.00043687,30]
[341328842,1730808980233,2031.01,0.00043687,30]
[341328843,1730808980262,500.0,0.00043687,30]
[341328844,1730808980291,588.99,0.00043687,30]
[341328845,1730808980320,2725.18,0.00043687,30]
[341328846,1730808980348,500.0,0.00043687,30]
[341328847,1730808980377,500.0,0.00043687,30]
[341328848,1730808980431,2031.01,0.00043687,30]
[341328849,1730808980471,588.99,0.00043687,30]
[341328850,1730808980532,2725.18,0.00043687,30]
[341328851,1730808980561,500.0,0.00043687,30]
[341328852,1730808980603,500.0,0.00043687,30]
[341328853,1730808980667,765.27,0.00043687,30]
[341328854,1730808980713,2031.01,0.00043687,30]
[341328855,1730808980742,588.99,0.00043687,30]
[341328856,1730808980849,500.0,0.00043687,30]
[341328857,1730808980880,2725.18,0.00043687,30]
[341328858,1730808981081,500.0,0.00043687,30]
[341328859,1730808981110,765.27,0.00043687,30]
[341328860,1730808981139,588.99,0.00043687,30]
[341328861,1730808981169,2031.01,0.00043687,30]
[341328862,1730808981196,500.0,0.00043687,30]
[341328863,1730808981224,500.0,0.00043687,30]
[341328864,1730808981257,156.26551594,0.00043687,30]
[341328865,1730808981289,2725.18,0.00043687,30]
[341328866,1730808981321,500.0,0.00043687,30]
[341328867,1730808981352,500.0,0.00043687,30]
[341328868,1730808981384,765.27,0.00043687,30]
[341328869,1730808981412,588.99,0.00043687,30]
[341328870,1730808981444,2031.01,0.00043687,30]
[341328871,1730808981473,525.26990446,0.00043687,30]
[341328872,1730808981502,313.01404977,0.00043687,30]
[341328873,1730808981532,2725.18,0.00043687,30]
[341328874,1730808981561,500.0,0.00043687,30]
[341328875,1730808981594,500.0,0.00043687,30]
[341328876,1730808981624,765.27,0.00043687,30]
[341328877,1730808981662,2031.01,0.00043687,30]
[341328878,1730808981714,588.99,0.00043687,30]
[341328879,1730808981862,2725.18,0.00043687,30]
[341328880,1730808981895,500.0,0.00043687,30]
[341328881,1730808981925,765.27,0.00043687,30]
[341328882,1730808981959,588.99,0.00043687,30]
[341328883,1730808981989,2031.01,0.00043687,30]
[341328884,1730808982019,500.0,0.00043687,30]
[341328885,1730808982051,2725.18,0.00043687,30]
[341328886,1730808982081,765.27,0.00043687,30]
[341328887,1730808982111,500.0,0.00043687,30]
[341328888,1730808982140,588.99,0.00043687,30]
[341328889,1730808982171,2031.01,0.00043687,30]
[341328890,1730808982200,500.0,0.00043687,30]
[341328891,1730808982229,500.0,0.00043687,30]
[341328892,1730808982260,500.0,0.00043687,30]
[341328893,1730808982298,2725.18,0.00043687,30]
[341328894,1730808982336,500.0,0.00043687,30]
[341328895,1730808982366,765.27,0.00043687,30]
[341328896,1730808982413,2031.01,0.00043687,30]
[341328897,1730808982443,588.99,0.00043687,30]
[341328898,1730808982805,500.0,0.00043687,30]
[341328899,1730808982836,500.0,0.00043687,30]
[341328900,1730808982866,500.0,0.00043687,30]
[341328901,1730808982897,2725.18,0.00043687,30]
[341328902,1730808982928,500.0,0.00043687,30]
[341328903,1730808982960,765.27,0.00043687,30]
[341328904,1730808982991,2031.01,0.00043687,30]
[341328905,1730808983025,588.99,0.00043687,30]
[341328906,1730808983055,500.0,0.00043687,30]
[341328907,1730808983100,500.0,0.00043687,30]
[341328908,1730808983131,500.0,0.00043687,30]
[341328909,1730808983159,500.0,0.00043687,30]
[341328910,1730808983194,500.0,0.00043687,30]
[341328911,1730808983224,765.27,0.00043687,30]
[341328912,1730808983264,2031.01,0.00043687,30]
[341328913,1730808983313,588.99,0.00043687,30]
[341328914,1730808983432,500.0,0.00043687,30]
[341328915,1730808983467,500.0,0.00043687,30]
[341328916,1730808983499,500.0,0.00043687,30]
[341328917,1730808983528,500.0,0.00043687,30]
[341328918,1730808983559,2725.18,0.00043687,30]
[341328919,1730808983656,588.99,0.00043687,30]
[341328920,1730808983710,2031.01,0.00043687,30]
[341328921,1730808983739,765.27,0.00043687,30]
[341328922,1730808983769,500.0,0.00043687,30]
[341328923,1730808983800,500.0,0.00043687,30]
[341328924,1730808983830,2725.18,0.00043687,30]
[341328925,1730808984061,2031.01,0.00043687,30]
[341328926,1730808984093,765.27,0.00043687,30]
[341328927,1730808984123,500.0,0.00043687,30]
[341328928,1730808984157,500.0,0.00043687,30]
[341328929,1730808984188,500.0,0.00043687,30]
[341328930,1730808984219,2031.01,0.00043687,30]
[341328931,1730808984252,2725.18,0.00043687,30]
[341328932,1730808984284,508.89357866,0.00043687,30]
[341328938,1730809381931,300.0,0.00019725,2]
[341328939,1730809441513,300.0,0.00019725,2]
[341328940,1730809463364,156.37,0.00015342,2]
[341328942,1730809508659,5940.48,0.00016,2]
[341328944,1730809520551,155.43408045,9e-05,2]
[341328945,1730809520572,155.43408045,9e-05,2]
[341328946,1730809520592,155.43408045,9e-05,2]
[341328947,1730809520613,155.43408045,9e-05,2]
[341328948,1730809520636,155.43408045,9e-05,2]
[341328949,1730809520657,138.69959775,9e-05,2]
[341328950,1730809531061,155.43408045,0.000101,2]
[341328951,1730809531083,155.43408045,0.000101,2]
[341328952,1730809531104,155.43408045,0.000101,2]
[341328953,1730809531127,155.43408045,0.000101,2]
[341328954,1730809531148,155.43408045,0.000101,2]
[341328955,1730809531170,155.43408045,0.000101,2]
[341328956,1730809531194,155.43408045,0.000101,2]
[341328957,1730809531214,155.43408045,0.000101,2]
[341328958,1730809531234,155.43408045,0.000101,2]
[341328959,1730809531254,155.43408045,0.000101,2]
[341328960,1730809531275,155.43408045,0.000101,2]
[341328961,1730809531295,155.43408045,0.000101,2]
[341328962,1730809531316,155.43408045,0.000101,2]
[341328963,1730809531336,155.43408045,0.000101,2]
[341328964,1730809531356,155.43408045,0.000101,2]
[341328965,1730809531377,155.43408045,0.000101,2]
[341328966,1730809531396,155.43408045,0.000101,2]
[341328967,1730809531416,155.43408033,0.000101,2]
[341328968,1730809531436,155.43408045,0.000101,2]
[341328969,1730809531456,155.43408045,0.000101,2]
[341328970,1730809531475,155.43408045,0.000101,2]
[341328971,1730809531498,1000.0,0.000101,2]
[341328972,1730809531518,1000.0,0.000101,2]
[341328973,1730809531537,1000.0,0.000101,2]
[341328974,1730809531556,1000.0,0.000101,2]
[341328975,1730809531575,1000.0,0.000101,2]
[341328976,1730809531594,1000.0,0.000101,2]
[341328977,1730809531614,1000.0,0.000101,2]
[341328978,1730809531636,1000.0,0.000101,2]
[341328979,1730809531656,1000.0,0.000101,2]
[341328980,1730809531675,1000.0,0.000101,2]
[341328981,1730809531695,1000.0,0.000101,2]
[341328982,1730809531714,1000.0,0.000101,2]
[341328983,1730809531734,1000.0,0.000101,2]
[341328984,1730809531753,1000.0,0.000101,2]
[341328985,1730809531772,1000.0,0.000101,2]
[341328986,1730809531791,1000.0,0.000101,2]
[341328987,1730809531818,9820.01431067,0.000101,2]
[341329002,1730809621011,-114000.0,0.00016,2]
[341329018,1730809704333,-1816.177595,0.0001439,2]
[341329021,1730809733618,-2127.3367772,0.000145,2]
[341329024,1730809805066,-150.0,0.00014427,2]
[341329033,1730809832261,-59.04785601,0.000145,2]
[341329034,1730809832270,-300.0,0.00014999,2]
[341329035,1730809832282,-150.0,0.00014999,2]
[341329036,1730809832291,-16590.95126188,0.00015,2]
[341329037,1730809832437,-3308.03132473,0.00015,2]
[341329335,1730809838881,-5529.15764425,0.00015,2]
[341329341,1730809840314,-836.57324192,0.00015,2]
[341329342,1730809840403,-458.69479275,0.00015,2]
[341329343,1730809840431,-361.366005,0.00015,2]
[341329345,1730809843187,-85928.61524371,0.00015,2]
[341329346,1730809843201,-4847.96907372,0.00015,2]
[341329347,1730809843219,-47238.98799224,0.00016,2]
[341329348,1730809843299,-350.730002,0.00016,2]
[341329349,1730809843316,-807.2792425,0.00016,2]
[341329350,1730809843357,-7205.18633827,0.00016,2]
[341329356,1730809846378,-1399.92136283,0.00016,2]
[341329400,1730811032399,-168.74,0.00015342,2]
[341329401,1730811032411,-156.0,0.00015342,2]
[341329402,1730811032421,-83.74048678,0.00015999,2]
[341329403,1730811032432,-77.12671922,0.00015999,2]
[341329404,1730811032442,-719.76744381,0.00016,2]
[341329405,1730811032539,-3393.18683747,0.00016,2]
[341329406,1730811032551,-1656.4887306,0.00016,2]
[341329407,1730811032624,-2165.17704729,0.00016,2]
[341329408,1730811032636,-1836.39289519,0.00016,2]
[341329409,1730811032647,-979.68026734,0.00016,2]
[341329417,1730811038391,-701.384344,0.00016,2]
[341329420,1730811038503,-3857.40151252,0.00016,2]
[341329421,1730811038578,-2227.48515217,0.00016,2]
[341329422,1730811038590,-28772.11797551,0.00016,2]
[341329423,1730811038774,-307.4777073,0.00016,2]
[341329427,1730811040704,-384.0092316,0.00016,2]
[341329428,1730811040716,-70118.71726656,0.00016,2]
[341329441,1730811043434,-14315.94359999,0.00016,2]
[341329442,1730811043596,-59620.45252742,0.00016,2]
[341329443,1730811043606,-831.26598817,0.00017392,2]
[341329444,1730811043616,-6015.20089601,0.00018,2]
[341329453,1730811046590,-1558.81289718,0.00018,2]
[341329454,1730811046602,-6012.32890018,0.00018,2]
[341329455,1730811046612,-1127.75971318,0.00018,2]
[341329456,1730811046621,-831.2659881,0.00019004,2]
[341329457,1730811046632,-2000.0,0.00019725,2]
[341329458,1730811046641,-2333.62706386,0.000199,3]
[341329459,1730811046652,-303.0,0.000199,2]
[341329460,1730811046661,-831.2659881,0.00020616,2]
[341329461,1730811046671,-465.33,0.00021414,2]
[341329462,1730811046681,-831.2659881,0.00022228,2]
[341329463,1730811046690,-200.0,0.00022971,2]
[341329464,1730811046700,-7373.16,0.00022988,2]
[341329465,1730811046709,-151.71,0.00023043,2]
[341329466,1730811046718,-177.44,0.00023339,2]
[341329467,1730811046728,-385.62,0.00023471,2]
[341329468,1730811046737,-1108.72635848,0.00023524,2]
[341329469,1730811046752,-11864.23280168,0.00023524,2]
[341329470,1730811046763,-1085.0,0.00023524,2]
[341329471,1730811046797,-816.721016,0.00023524,2]
[341329477,1730811551147,-155.91,0.00015342,2]
[341329516,1730812138364,158.15,0.00015342,2]
[341329524,1730812231562,-150.0,0.00018107,2]
[341329525,1730812231572,-300.0,0.00019725,2]
[341329526,1730812231581,-1408.0,0.000198,2]
[341329527,1730812231590,-420.0,0.00021484,2]
[341329528,1730812231599,-587.0,0.00023401,2]
[341329529,1730812231608,-200.0,0.00023524,2]
[341329530,1730812231620,-177.492,0.00023663,4]
[341329531,1730812231633,-463.1,0.00023952,2]
[341329532,1730812231645,-152.83,0.00024793,2]
[341329533,1730812231654,-70165.25688406,0.00025,5]
[341329534,1730812231663,-158.23,0.00025269,30]
[341329535,1730812231673,-426.57,0.00025342,2]
[341329536,1730812231682,-1161.67,0.00025342,2]
[341329537,1730812231692,-23900.0,0.00025401,2]
[341329538,1730812231700,-219.05,0.00025462,2]
[341329539,1730812231709,-183.05,0.00025464,2]
[341329540,1730812231719,-823.0,0.00025488,2]
[341329541,1730812231727,-250.0,0.00025506,2]
[341329542,1730812231737,-1000.0,0.00025546,2]
[341329543,1730812231746,-14439.69,0.00025546,2]
[341329544,1730812231756,-177.44,0.00025628,2]
[341329545,1730812231765,-304.96,0.00025785,2]
[341329546,1730812231775,-463.1,0.00026216,2]
[341329547,1730812231786,-303.52,0.00026301,2]
[341329548,1730812231796,-1062.634,0.00026751,2]
[341329549,1730812231805,-200.0,0.000268,9]
[341329550,1730812231815,-500.0,0.000269,9]
[341329551,1730812231825,-639.60515334,0.0002718,2]
[341329552,1730812231835,-42292.02217939,0.00027279,2]
[341329553,1730812231844,-40270.18625411,0.0002728,2]
[341329554,1730812231915,-1239.75970994,0.0002728,2]
[341329555,1730812231947,-232421.31918793,0.0002728,2]
[341329557,1730812231958,-151.0,0.0002728,7]
[341329559,1730812231968,-151.0,0.0002728,7]
[341329561,1730812231978,-174.250354,0.0002728,7]
[341329563,1730812231987,-174.250354,0.0002728,7]
[341329564,1730812231996,-161.056408,0.0002728,7]
[341329565,1730812232006,-151.0,0.0002728,7]
[341329566,1730812232015,-151.0,0.0002728,7]
[341329567,1730812232024,-151.0,0.0002728,7]
[341329568,1730812232034,-252.413405,0.0002728,7]
[341329569,1730812232043,-151.0,0.0002728,7]
[341329570,1730812232052,-252.413405,0.0002728,7]
[341329571,1730812232062,-151.0,0.0002728,7]
[341329572,1730812232072,-151.0,0.0002728,7]
[341329573,1730812232081,-158.435495,0.0002728,7]
[341329574,1730812232091,-151.0,0.0002728,7]
[341329575,1730812232100,-151.0,0.0002728,7]
[341329576,1730812232109,-151.0,0.0002728,7]
[341329577,1730812232118,-151.0,0.0002728,7]
[341329578,1730812232127,-1142.621457,0.0002728,7]
[341329579,1730812232136,-151.0,0.0002728,7]
[341329580,1730812232145,-1142.621457,0.0002728,7]
[341329581,1730812232154,-190.510339,0.0002728,7]
[341329582,1730812232163,-190.510339,0.0002728,7]
[341329583,1730812232173,-151.0,0.0002728,7]
[341329584,1730812232184,-152.038753,0.0002728,7]
[341329585,1730812232193,-267.715634,0.0002728,7]
[341329586,1730812232202,-267.715634,0.0002728,7]
[341329587,1730812232212,-7470.87291,0.0002728,7]
[341329588,1730812232221,-151.0,0.0002728,7]
[341329589,1730812232230,-7470.87291,0.0002728,7]
[341329590,1730812232240,-151.0,0.0002728,7]
[341329591,1730812232249,-159.326603,0.0002728,7]
[341329592,1730812232258,-151.0,0.0002728,7]
[341329593,1730812232267,-151.0,0.0002728,7]
[341329594,1730812232278,-562.273785,0.0002728,7]
[341329595,1730812232289,-151.0,0.0002728,7]
[341329596,1730812232298,-151.0,0.0002728,7]
[341329597,1730812232308,-562.273785,0.0002728,7]
[341329598,1730812232316,-190.033233,0.0002728,7]
[341329599,1730812232325,-190.033233,0.0002728,7]
[341329600,1730812232336,-152.373598,0.0002728,7]
[341329601,1730812232346,-152.373598,0.0002728,7]
[341329602,1730812232356,-151.0,0.0002728,7]
[341329603,1730812232365,-151.0,0.0002728,7]
[341329604,1730812232375,-151.0,0.0002728,7]
[341329605,1730812232384,-151.0,0.0002728,7]
[341329606,1730812232393,-151.0,0.0002728,7]
[341329607,1730812232403,-155.864228,0.0002728,7]
[341329608,1730812232412,-155.37192,0.0002728,7]
[341329609,1730812232422,-165.23110341,0.00027297,2]
[341329610,1730812232432,-26808.32675945,0.0002739,2]
[341329611,1730812232441,-151.0,0.0002739,7]
[341329612,1730812232452,-267.715634,0.0002739,7]
[341329613,1730812232463,-267.715634,0.0002739,7]
[341329614,1730812232472,-7470.87291,0.0002739,7]
[341329615,1730812232483,-151.0,0.0002739,7]
[341329616,1730812232496,-7470.87291,0.0002739,7]
[341329617,1730812232505,-151.0,0.0002739,7]
[341329618,1730812232514,-151.0,0.0002739,7]
[341329619,1730812232523,-151.0,0.0002739,7]
[341329620,1730812232534,-562.273785,0.0002739,7]
[341329621,1730812232543,-562.273785,0.0002739,7]
[341329622,1730812232552,-190.033233,0.0002739,7]
[341329623,1730812232563,-190.033233,0.0002739,7]
[341329624,1730812232575,-152.373598,0.0002739,7]
[341329625,1730812232586,-152.373598,0.0002739,7]
[341329626,1730812232595,-151.0,0.0002739,7]
[341329627,1730812232604,-151.0,0.0002739,7]
[341329628,1730812232614,-151.0,0.0002739,7]
[341329629,1730812232624,-151.0,0.0002739,7]
[341329630,1730812232633,-200.0,0.00027396,2]
[341329631,1730812232644,-199.0,0.00027396,2]
[341329632,1730812232653,-200.0,0.00027396,2]
[341329633,1730812232662,-200.0,0.00027396,2]
[341329634,1730812232672,-200.0,0.00027396,2]
[341329635,1730812232681,-500.0,0.00027396,2]
[341329636,1730812232690,-500.0,0.00027396,2]
[341329637,1730812232699,-500.0,0.00027396,2]
[341329638,1730812232709,-500.0,0.00027396,2]
[341329639,1730812232718,-500.0,0.00027396,2]
[341329640,1730812232728,-506.60660798,0.00027396,2]
[341329641,1730812232738,-500.0,0.00027396,2]
[341329642,1730812232748,-500.0,0.00027396,2]
[341329643,1730812232758,-500.0,0.00027396,2]
[341329644,1730812232767,-500.0,0.00027396,2]
[341329645,1730812232776,-500.0,0.00027396,2]
[341329646,1730812232787,-500.0,0.00027396,2]
[341329647,1730812232796,-500.0,0.00027396,2]
[341329648,1730812232805,-500.0,0.00027396,2]
[341329649,1730812232815,-500.0,0.00027396,2]
[341329650,1730812232825,-500.0,0.00027396,2]
[341329651,1730812232835,-500.0,0.00027396,2]
[341329652,1730812232844,-500.0,0.00027396,2]
[341329653,1730812232854,-500.0,0.00027396,2]
[341329654,1730812232863,-500.0,0.00027396,2]
[341329655,1730812232872,-450.0,0.00027396,2]
[341329656,1730812232882,-500.0,0.00027396,2]
[341329657,1730812232891,-500.0,0.00027396,2]
[341329658,1730812232901,-500.0,0.00027396,2]
[341329659,1730812232910,-500.0,0.00027396,2]
[341329660,1730812232919,-500.0,0.00027396,2]
[341329661,1730812232929,-276.06023809,0.00027396,2]
[341329662,1730812232938,-300.0,0.00027396,2]
[341329663,1730812232947,-154.598911,0.00027397,7]
[341329664,1730812232956,-500.0,0.00027397,2]
[341329665,1730812232965,-503.84309427,0.00027397,2]
[341329666,1730812232974,-502.17574338,0.00027397,2]
[341329667,1730812232984,-502.05801377,0.00027397,2]
[341329668,1730812232993,-500.0,0.00027397,2]
[341329669,1730812233003,-500.0,0.00027397,2]
[341329670,1730812233012,-500.0,0.00027397,2]
[341329671,1730812233022,-501.82369975,0.00027397,2]
[341329672,1730812233032,-501.65121937,0.00027397,2]
[341329673,1730812233042,-291.35434554,0.00027397,2]
[341329674,1730812233051,-500.0,0.00027397,2]
[341329675,1730812233061,-505.19570061,0.00027397,2]
[341329676,1730812233071,-500.0,0.00027397,2]
[341329677,1730812233080,-500.0,0.00027397,2]
[341329678,1730812233090,-500.0,0.00027397,2]
[341329679,1730812233099,-500.0,0.00027397,2]
[341329680,1730812233108,-500.0,0.00027397,2]
[341329681,1730812233118,-500.0,0.00027397,2]
[341329682,1730812233127,-500.0,0.00027397,2]
[341329683,1730812233136,-500.0,0.00027397,2]
[341329684,1730812233145,-500.0,0.00027397,2]
[341329685,1730812233155,-500.0,0.00027397,2]
[341329686,1730812233164,-500.0,0.00027397,2]
[341329687,1730812233173,-542.42521425,0.00027397,2]
[341329688,1730812233182,-502.75621054,0.00027397,2]
[341329689,1730812233191,-500.0,0.00027397,2]
[341329690,1730812233201,-500.0,0.00027397,2]
[341329691,1730812233210,-500.0,0.00027397,2]
[341329692,1730812233219,-500.0,0.00027397,2]
[341329693,1730812233229,-500.0,0.00027397,2]
[341329694,1730812233238,-500.0,0.00027397,2]
[341329695,1730812233248,-500.0,0.00027397,2]
[341329696,1730812233257,-500.0,0.00027397,2]
[341329697,1730812233267,-500.0,0.00027397,2]
[341329698,1730812233276,-1112.42655044,0.00027397,10]
[341329699,1730812233286,-500.0,0.00027397,2]
[341329700,1730812233295,-171.25352993,0.00027397,2]
[341329701,1730812233305,-500.0,0.00027397,2]
[341329702,1730812233314,-500.0,0.00027397,2]
[341329703,1730812233324,-500.0,0.00027397,2]
[341329704,1730812233334,-518.13565582,0.00027397,2]
[341329705,1730812233343,-500.0,0.00027397,2]
[341329706,1730812233353,-500.0,0.00027397,2]
[341329707,1730812233362,-500.0,0.00027397,2]
[341329708,1730812233371,-500.0,0.00027397,2]
[341329709,1730812233380,-500.0,0.00027397,2]
[341329710,1730812233390,-426.46149071,0.00027397,2]
[341329711,1730812233401,-500.0,0.00027397,2]
[341329712,1730812233410,-500.0,0.00027397,2]
[341329713,1730812233420,-500.0,0.00027397,2]
[341329714,1730812233429,-500.0,0.00027397,2]
[341329715,1730812233439,-500.0,0.00027397,2]
[341329716,1730812233448,-506.74435704,0.00027397,2]
[341329717,1730812233458,-500.0,0.00027397,2]
[341329718,1730812233467,-500.0,0.00027397,2]
[341329719,1730812233476,-500.0,0.00027397,2]
[341329720,1730812233487,-178.52422636,0.00027397,2]
[341329721,1730812233502,-500.0,0.00027397,2]
[341329722,1730812233512,-530.29530415,0.00027397,2]
[341329723,1730812233521,-527.95171263,0.00027397,2]
[341329724,1730812233532,-500.0,0.00027397,2]
[341329725,1730812233545,-500.0,0.00027397,2]
[341329726,1730812233556,-500.0,0.00027397,2]
[341329727,1730812233565,-151.0,0.00027397,7]
[341329728,1730812233575,-151.0,0.00027397,7]
[341329729,1730812233584,-151.0,0.00027397,7]
[341329730,1730812233593,-151.0,0.00027397,7]
[341329731,1730812233603,-151.0,0.00027397,7]
[341329732,1730812233613,-151.0,0.00027397,7]
[341329733,1730812233622,-151.0,0.00027397,7]
[341329734,1730812233631,-500.0,0.00027397,2]
[341329735,1730812233641,-151.0,0.00027397,7]
[341329736,1730812233650,-151.0,0.00027397,7]
[341329737,1730812233660,-151.0,0.00027397,7]
[341329738,1730812233669,-500.0,0.00027397,2]
[341329739,1730812233679,-500.0,0.00027397,2]
[341329740,1730812233688,-151.0,0.00027397,7]
[341329741,1730812233698,-151.0,0.00027397,7]
[341329742,1730812233708,-151.0,0.00027397,7]
[341329743,1730812233717,-151.0,0.00027397,7]
[341329744,1730812233727,-500.0,0.00027397,2]
[341329745,1730812233737,-151.0,0.00027397,7]
[341329746,1730812233747,-151.0,0.00027397,7]
[341329747,1730812233756,-500.0,0.00027397,2]
[341329748,1730812233766,-278.303488,0.00027397,7]
[341329749,1730812233775,-500.0,0.00027397,2]
[341329750,1730812233786,-514.71166988,0.00027397,2]
[341329751,1730812233796,-500.0,0.00027397,2]
[341329752,1730812233805,-504.90678028,0.00027397,2]
[341329753,1730812233815,-500.0,0.00027397,2]